Date of the transaction,Department which incurred the expenditure,Beneficiary,Net amount,Summary of the purpose of the expenditure,Merchant category
31/03/2021,Sheltered Housing,AMZNMktplace,116.66,Storage box ,MISCELLANEOUS AND SPECIALTY RETAIL STORES
31/03/2021,Sheltered Housing,AMZNMktplace,52.57,Coffee machine,MISCELLANEOUS AND SPECIALTY RETAIL STORES
31/03/2021,Sheltered Housing,AMZNMKTPLACE AMAZON.CO,56.66,Office chair ,MISCELLANEOUS AND SPECIALTY RETAIL STORES
01/04/2021,"Depot, Gt Dunmow",HOMEBASE LTD 619,22.48,hex keys and wd40 for bins and lorries,HOME SUPPLY WAREHOUSE STORES
01/04/2021,Museum S/W,AMZNMktplace,10.64,Books for natural sciences collection research,MISCELLANEOUS AND SPECIALTY RETAIL STORES
01/04/2021,Museum S/W,AMZNMKTPLACE AMAZON.CO,14.07,books for natural sciences collection research,MISCELLANEOUS AND SPECIALTY RETAIL STORES
01/04/2021,Museum S/W,AMZNMktplace,12.34,Books for natural sciences collection research,MISCELLANEOUS AND SPECIALTY RETAIL STORES
01/04/2021,Corporate,WWW.VOUCHERS4CHARITY.O,488.4,,"GIFT, CARD, NOVELTY AND SOUVENIR SHOPS"
03/04/2021,Museum S/W,AMZNMktplace,8.29,Books for Natural Sciences collection research,MISCELLANEOUS AND SPECIALTY RETAIL STORES
06/04/2021,Sheltered Housing,AMZNMktplace,19.97,Batteries for Telecare Equipment,MISCELLANEOUS AND SPECIALTY RETAIL STORES
12/04/2021,Sheltered Housing,B&M 097 - BISHOP STORT,15,Air freshners for sheltered housing communal areas,MISCELLANEOUS GENERAL MERCHANDISE
12/04/2021,Sheltered Housing,Amazon.co.uk M41773ED4,55.65,Hose Pipe for Sheltered Site garden,DIRECT MARKETING-OTHER DIRECT MARKETERS/NOT ELSEW.
12/04/2021,Sheltered Housing,POST OFFICE COUNTER,1.83,Postage for return of Telecare batteries,POSTAL SERVICES-GOVERNMENT ONLY
13/04/2021,Sheltered Housing,AMZNMktplace,22.49,Portable laptop desk ,MISCELLANEOUS AND SPECIALTY RETAIL STORES
13/04/2021,Sheltered Housing,AMZNMktplace,43.39,Parasol ,MISCELLANEOUS AND SPECIALTY RETAIL STORES
14/04/2021,Legal Services,WWW.MONEYCLAIM.GOV,70,Issuing of claim Iken,GOVERNMENT SERVICES-NOT ELSEWHERE CLASSIFIED
17/04/2021,Sheltered Housing,AMZ All Things Lithium,-4.75,refund given on postage spent on return of batteries for telecare,MISCELLANEOUS AND SPECIALTY RETAIL STORES
17/04/2021,Sheltered Housing,AMZ All Things Lithium,-19.97,REFUND ON TELECARE BATTERIES WRONG ONES SENT,MISCELLANEOUS AND SPECIALTY RETAIL STORES
19/04/2021,Sheltered Housing,AMZNMktplace,24.75,Large key safe,MISCELLANEOUS AND SPECIALTY RETAIL STORES
21/04/2021,"Depot, Gt Dunmow",PROJSS.CO.UK,608.4,Signing lighting and guarding training,SCHOOLS & EDUCATIONAL SVC-NOT ELSEWHERE CLASSIFIED
21/04/2021,Highway Ranger,RIDGEONS SAFFRON WALDE,253.17,Various Paints and Equipment for Road Signs,"BUILDING MATERIALS, LUMBER STORES"
21/04/2021,Sheltered Housing,TESCO STORE 3130,11.67,USB cable as phone not charging,"GROCERY STORES, SUPERMARKETS"
21/04/2021,Sheltered Housing,TESCO STORE 3130,9.17,Charging lead for car,"GROCERY STORES, SUPERMARKETS"
21/04/2021,Waste Management,DVLA VEHICLE TAX,107.5,VED,TAX PAYMENTS
21/04/2021,Waste Management,DVLA VEHICLE TAX,302.5,12 Months VED,TAX PAYMENTS
23/04/2021,Highway Ranger,RIDGEONS SAFFRON WALDE,31.42,various items for painting materials ,"BUILDING MATERIALS, LUMBER STORES"
26/04/2021,Planning Policy,ZOOM.US 888-799-9666,112,Zoom Webinar subscription,TELECOM INCL PREPAID/RECURRING PHONE SVCS
27/04/2021,Sheltered Housing,TESCO STORE 3130,18.67,Emergency food for Sheltered resident,"GROCERY STORES, SUPERMARKETS"
27/04/2021,Waste Management,DVLA VEHICLE TAX,277.5,12 Months VED,TAX PAYMENTS
28/04/2021,Little Canfield Business Park,E.ON ENERGY SOLUTIONS,33.32,Monthly gas bill,"UTLTS-ELCTRC, GAS, HEATING OIL, SANITARY, WATER"
29/04/2021,"Depot, Saffron Walden",B&M RETAIL LTD,16.67,1 x new kettle for office as attached receipt,MISCELLANEOUS GENERAL MERCHANDISE
30/04/2021,Museum S/W,QD STORES,2.48,Replacement batteries for environmental probe,DISCOUNT STORES
30/04/2021,Museum S/W,WAITROSE 135,9.17,"Brita water filter replacement cartridges, used for softening water for use in humidifiers.","GROCERY STORES, SUPERMARKETS"
04/05/2021,Highway Ranger,TRAVIS PERKINS,14.55,4 x bags of cement,"BUILDING MATERIALS, LUMBER STORES"
05/05/2021,Vehicle Maintenance,RIDGEONS SAFFRON WALDE,26.55,new shovels and brushes for refuse vehicles,"BUILDING MATERIALS, LUMBER STORES"
06/05/2021,Museum S/W,QD STORES,4.16,New batteries for hand sanitizers,DISCOUNT STORES
06/05/2021,Sheltered Housing,UTTLESFORD DISTRIC,46,Collection of yearly garden waste form sheltered housing site,"ASSOCIATIONS-CIVIC, SOCIAL, AND FRATERNAL"
09/05/2021,Sheltered Housing,AMZNMktplace,4.09,Floor protectors,MISCELLANEOUS AND SPECIALTY RETAIL STORES
09/05/2021,Sheltered Housing,AMZNMktplace,17.49,Matting - sheltered,MISCELLANEOUS AND SPECIALTY RETAIL STORES
09/05/2021,Sheltered Housing,AMZNMktplace,19.99,Security mirror ,MISCELLANEOUS AND SPECIALTY RETAIL STORES
10/05/2021,Sheltered Housing,AMZNMKTPLACE AMAZON.CO,11.45,Display holders ,MISCELLANEOUS AND SPECIALTY RETAIL STORES
10/05/2021,Sheltered Housing,AMZNMKTPLACE AMAZON.CO,33.25,Blinds ,MISCELLANEOUS AND SPECIALTY RETAIL STORES
10/05/2021,Sheltered Housing,AMZNMktplace,20.82,Shelving unit ,MISCELLANEOUS AND SPECIALTY RETAIL STORES
10/05/2021,Corporate,CLINTONS-169,2,,"GIFT, CARD, NOVELTY AND SOUVENIR SHOPS"
11/05/2021,Waste Management,DVSA  LEARNER,37,"1 x Theory Test1 x Hazard Perception Test",GOVERNMENT SERVICES-NOT ELSEWHERE CLASSIFIED
11/05/2021,Corporate,WWW.EPOSNOW.COM,70.38,,"COMP PROGRAMING,DATA PRCSNG,INTGRTD SYS DSGN SRVS"
11/05/2021,Corporate,WAITROSE 101,16,,"GROCERY STORES, SUPERMARKETS"
12/05/2021,Sheltered Housing,AMZNMktplace,83.32,Garden parasol for sheltered site ,MISCELLANEOUS AND SPECIALTY RETAIL STORES
13/05/2021,Commercial Team,CHARTERED INSTITUTE OF,162,Fee Payment towards CIEH Higher Log Book ,"ORGANIZATIONS, CHARITABLE AND SOCIAL SERVICES"
14/05/2021,Building Surveying,WWW.LABC.UK.COM,75,LABC Course - Effective Enforcement - Virtual Event,BUSINESS SERVICES-NOT ELSEWHERE CLASSIFIED
14/05/2021,Sheltered Housing,AMZNMktplace,64.37,Extra shelving,MISCELLANEOUS AND SPECIALTY RETAIL STORES
17/05/2021,Museum S/W,Amazon.co.uk MK0E22IC4,4.87,clamps for conservation of taxidermy LLON project,DIRECT MARKETING-OTHER DIRECT MARKETERS/NOT ELSEW.
17/05/2021,Museum S/W,Amazon.co.uk MK2B51R24,7.5,"sculpting tools for taxidermy conservation, LLON project",DIRECT MARKETING-OTHER DIRECT MARKETERS/NOT ELSEW.
17/05/2021,Museum S/W,WWW.COWLINGANDWILCOX.C,49.48,Paint and brushes for natural sciences conservation,"ARTIST SUPPLY STORES, CRAFT SHOPS"
17/05/2021,Museum S/W,SUTTON SEEDS ECOM,14.98,,MISCELLANEOUS GENERAL MERCHANDISE
17/05/2021,Museum S/W,SCREWFIX DIRECT,33.02,Tool box for storage of natural sciences conservation equipment for LLON project. Side cutters for cutting wire in taxidermy mounts - conservation- LLON project,"BUILDING MATERIALS, LUMBER STORES"
17/05/2021,Waste Management,SIMPSONS NURSERIES,24.17,Plant replacements for 4 Gardens Following Refuse Truck Damage,LAWN AND GARDEN SUPPLY STORES
17/05/2021,Waste Management,SPRINGWELL NURSERY,10.79,Plant Replacement For 4 Gardens Following Refuse Truck Damage,LAWN AND GARDEN SUPPLY STORES
17/05/2021,Corporate,MIND IN WEST ESSEX,195,,"HEALTH PRACTITIONERS, MEDICAL SRVCS-NOT ELSEWHERE"
18/05/2021,Vehicle Maintenance,DVLA DUPLICATE V5C MID,25,replacement log book on behalf of workshop,GOVERNMENT SERVICES-NOT ELSEWHERE CLASSIFIED
20/05/2021,Legal Services,IT GOVERNANCE LTD,9.95,EU GDPR � An international guide to compliance Recommended reading,COMPUTER SOFTWARE STORES
20/05/2021,Legal Services,IT GOVERNANCE LTD,660,Foundation course for GDPR,COMPUTER SOFTWARE STORES
20/05/2021,Sheltered Housing,QD STORES,8.28,Lifeline bags and bands,DISCOUNT STORES
21/05/2021,Legal Services,WWW.MONEYCLAIM.GOV,35,Issuing Claim proceedings ,GOVERNMENT SERVICES-NOT ELSEWHERE CLASSIFIED
21/05/2021,Museum S/W,LOCK STOCK AND BARRELL,6.65,Two extra keys cut for Museum Shop till,BUSINESS SERVICES-NOT ELSEWHERE CLASSIFIED
21/05/2021,Sheltered Housing,AMZNMktplace,10.62,Batteries for Telecare alarms,MISCELLANEOUS AND SPECIALTY RETAIL STORES
21/05/2021,Waste Management,WWW.TCFIXINGS.CO.UK,46.83,1 x pair safety boots for emergency issue,"BUILDING MATERIALS, LUMBER STORES"
23/05/2021,Sheltered Housing,AMZNMktplace,17.46,3 V AA Batteries for Telecare alarms,MISCELLANEOUS AND SPECIALTY RETAIL STORES
24/05/2021,Democratic Rep,EB  ONLINE TRAINING MA,120,Managing Conflict Seminar ,BUSINESS SERVICES-NOT ELSEWHERE CLASSIFIED
24/05/2021,"Depot, Gt Dunmow",TRAVIS PERKINS,78.48,"tools, sand ,cement straps for repair to post and straps for bin delivery driver","BUILDING MATERIALS, LUMBER STORES"
24/05/2021,Corporate,SOUTHEND COUNTY,1482,,FINES
25/05/2021,Commercial Team,ALEXANDRA WEBSITE,36.97,"Supply and deliver 1 x Trilby Hat (Small Size G110WH-S 1 9.99 9.99) and 1 x Ladies Coat White (W3WH-92 cost 21.99) + Carriage at 4.99 + VatRef: EI - EHC",MEN'S/WOMEN'S/CHILDREN'S UNIFORMS/COMMERCIAL CLOTH
25/05/2021,Housing Services,ONE4ALL,600,compensating purchase,DEPARTMENT STORES
26/05/2021,Development Control,ZOOM.US 888-799-9666,112,Zoom licence x 2 ,TELECOM INCL PREPAID/RECURRING PHONE SVCS
26/05/2021,Lifeline,AMZNMktplace,31.64,Specialist batteries for lifeline sensors,MISCELLANEOUS AND SPECIALTY RETAIL STORES
27/05/2021,Museum S/W,AMZNMKTPLACE AMAZON.CO,54.99,Ring light for use in digital session and activities + photographing objects in the collections.,MISCELLANEOUS AND SPECIALTY RETAIL STORES
27/05/2021,Sheltered Housing,AMZNMktplace,8.32,Mouse for laptop,MISCELLANEOUS AND SPECIALTY RETAIL STORES
27/05/2021,Corporate,WH SMITH,10.93,,NEWS DEALERS AND NEWSSTANDS
01/06/2021,Waste Management,DVLA VEHICLE TAX,302.5,12 months VED,TAX PAYMENTS
02/06/2021,Museum S/W,HOMEBASE LTD 643,5,"Large metal drill bit to widen holes on the latch of the Museum driveway gates, to make them easier to pass a padlock through.",HOME SUPPLY WAREHOUSE STORES
02/06/2021,Museum S/W,LOCK STOCK AND BARRELL,2.92,key cutting,BUSINESS SERVICES-NOT ELSEWHERE CLASSIFIED
04/06/2021,Env Protection,HOMEFRONT LOCKSMITHS,285,Cost of supply and replace locks with new (3 x Mortice Locks and keys + 1 x Rim Cylinder lock with total cost of 285.00 + VAT ,"HAT CLEANING SHOPS, SHOE REPAIR SHOPS, SHOE SHINE"
04/06/2021,Waste Management,SHELL OAKLANDS PK,208.47,emergency fuel purchase for VED Refuse vehicle,SERVICE STATIONS WITH OR WITHOUT ANCILLARY SERVICE
07/06/2021,Democratic Rep,WWW.LOCAL.GOV.UK,379,District Council Network Annual Conference,BUSINESS SERVICES-NOT ELSEWHERE CLASSIFIED
08/06/2021,Border Inspection,SQ  SAPPHIRE PACKAGING,100.76,Supply of 750 18x24 250g Clear Poly Bags (457 x 610 mm - 64 mu) at cost of 100.76 + VAT Order No: 61621,STATIONERY/OFFICE SUPPLIES/PRINTING & WRITING PAP.
08/06/2021,Chief Executive,TESCO STORE 3130,19.05,"This is an order for water for the depot and loaders, we had an initial order showing a 15p payment, but things were not available on the day so had to pay more on the credit card because the clubcard vouchers can only be used in certain denominations","GROCERY STORES, SUPERMARKETS"
08/06/2021,Development Control,AMZNMktplace,12.42,'In ear' earphones required by officer because of medical condition.,MISCELLANEOUS AND SPECIALTY RETAIL STORES
08/06/2021,Sheltered Housing,AMZNMKTPLACE AMAZON.CO,24.99,Wall mounted fan,MISCELLANEOUS AND SPECIALTY RETAIL STORES
13/06/2021,Sheltered Housing,AMZNMktplace,37.67,Swing bins for sheltered sites,MISCELLANEOUS AND SPECIALTY RETAIL STORES
16/06/2021,Food Hygiene,WWW.NISBETS.COM,177.9,"Supply of PPE Workwear (EHC Team) 3 x Whites Food Hygiene Coat Ladies - Size L 21.99 65.97, 3 x Whites Unisex Coat White Polycotton - Size M 3 20.99 62.971 x Trilby Hat White with Snood - Size M 1 12.99 12.993 x Trilby Hat White - Size M 11.99 35.97",DIRECT MARKETING-CATALOG MERCHANTS
16/06/2021,Housing Services,SPRINGWELL NURSERY,100,TP expenses,LAWN AND GARDEN SUPPLY STORES
16/06/2021,Museum S/W,LOCK STOCK AND BARRELL,5.82,key cutting,BUSINESS SERVICES-NOT ELSEWHERE CLASSIFIED
16/06/2021,Museum S/W,WWW.ALWAYSHOBBIES.COM,52.44,Siege engines for Castles school session,"GAME, TOY, AND HOBBY SHOPS"
17/06/2021,Museum S/W,AMZNMktplace,19.99,,MISCELLANEOUS AND SPECIALTY RETAIL STORES
17/06/2021,Vehicle Maintenance,WWW.TCFIXINGS.CO.UK,6.91,bolts for workshop. for fixings on VED,"BUILDING MATERIALS, LUMBER STORES"
18/06/2021,Chief Executive,TESCO STORE 3130,6.71,"Refreshment order for the grand opening of the Saffron Walden Castle event held on 18th June - note variation in receipt to charge on credit card, this is because of the denominations of club card vouchers, hence the 6.71 charge for the difference","GROCERY STORES, SUPERMARKETS"
18/06/2021,Democratic Rep,EB  ONLINE TRAINING MA,-120,Refund for Cancelled Seminar ,BUSINESS SERVICES-NOT ELSEWHERE CLASSIFIED
18/06/2021,Corporate,CHARTERED INSTITUTE OF,20,,"ORGANIZATIONS, CHARITABLE AND SOCIAL SERVICES"
22/06/2021,Museum S/W,QD STORES,8.32,New batteries for Covid sanitizers,DISCOUNT STORES
22/06/2021,Corporate,WH SMITH,-15.96,,NEWS DEALERS AND NEWSSTANDS
22/06/2021,Corporate,WH SMITH,15.96,,NEWS DEALERS AND NEWSSTANDS
22/06/2021,Corporate,WH SMITH,16.16,,NEWS DEALERS AND NEWSSTANDS
23/06/2021,Museum S/W,WWW.PRESERVATIONEQUIPM,40.8,conservation equipment for Lost Language project,"PUBLIC WAREHOUSING-FARM, REFRIG GOODS, HHG STORAGE"
23/06/2021,Corporate,TESCO STORE 2574,100,,"GROCERY STORES, SUPERMARKETS"
24/06/2021,Democratic Rep,SOUTH EAST EMPLOYERS,99,Undertaking a successful Members Allowance Review Course ,"ORGANIZATIONS, MEMBERSHIP-NOT ELSEWHERE CLASSIFIED"
24/06/2021,"Depot, Gt Dunmow",COYLES CAR CARE,8.99,tyre weld for sack barrow,"AUTOMOTIVE PARTS, ACCESSORIES STORES"
24/06/2021,Corporate,DVLA VEHICLE TAX,277.5,,TAX PAYMENTS
26/06/2021,Corporate,ZOOM.US 888-799-9666,123.02,,TELECOM INCL PREPAID/RECURRING PHONE SVCS
29/06/2021,Chief Executive,TESCO STORE 3130,7,Water for the Depot,"GROCERY STORES, SUPERMARKETS"
02/07/2021,Commercial Team,CHARTERED INSTITUTE OF,62,Fee of 62.00 payment towards CIEH EHRB Endorsement ,"ORGANIZATIONS, CHARITABLE AND SOCIAL SERVICES"
07/07/2021,Sheltered Housing,HOMEBASE LTD 643,18.62,Hose and Glue for signs,HOME SUPPLY WAREHOUSE STORES
08/07/2021,Highway Ranger,RIDGEONS SAFFRON WALDE,83.9,Various Items as Per Receipt attached,"BUILDING MATERIALS, LUMBER STORES"
09/07/2021,Chief Executive,TESCO STORE 3130,5.5,"Provisions for Rural Crime project in conjunction with CVSU, this is the additional amount outside of Tesco Clubcard vouchers","GROCERY STORES, SUPERMARKETS"
12/07/2021,Building Surveying,WWW CBUILDE COM,225,professional membership,"CLUBS-CNTRY,MBRSHIP(ATHLET,REC,SPRTS,PRIVATE GOLF"
14/07/2021,Housing Services,ZOOM.US 888-799-9666,119.9,Zoom,TELECOM INCL PREPAID/RECURRING PHONE SVCS
15/07/2021,Little Canfield Business Park,TESCO STORE 2172,6.33,Cleaning Materials (56.09%),"GROCERY STORES, SUPERMARKETS"
15/07/2021,Office Services,TESCO STORE 2172,5.95,Refreshments (43.91%),"GROCERY STORES, SUPERMARKETS"
16/07/2021,Waste Management,RIDGEONS SAFFRON WALDE,121.18,Safety Boots x 3 Pairs for the teams,"BUILDING MATERIALS, LUMBER STORES"
17/07/2021,Museum S/W,SAFFRON WALDEN MUSEUM,1,Museum Guide for inclusion in new Welcome Volunteer induction pack.,TOURIST ATTRACTIONS AND EXHIBITS
19/07/2021,Museum S/W,AMZNMktplace,5.24,Twine for kite craft,MISCELLANEOUS AND SPECIALTY RETAIL STORES
19/07/2021,Museum S/W,AMZNMktplace,9.16,paintbrushes for craft activities,MISCELLANEOUS AND SPECIALTY RETAIL STORES
19/07/2021,Museum S/W,AMZNMktplace,5.82,Tissue paper for crafts,MISCELLANEOUS AND SPECIALTY RETAIL STORES
19/07/2021,Museum S/W,AMZNMktplace,7.49,Dowell for craft activities,MISCELLANEOUS AND SPECIALTY RETAIL STORES
19/07/2021,Museum S/W,eBay O 11-07358-15067,21.49,brown paper bags for activity packs,DEPARTMENT STORES
19/07/2021,Museum S/W,eBay O 06-07359-18789,14.99,scissors for craft activties,DEPARTMENT STORES
20/07/2021,Museum S/W,AMZNMktplace,10.82,PVA glue for crafts,MISCELLANEOUS AND SPECIALTY RETAIL STORES
21/07/2021,Waste Management,TESCO STORE 3130,33,Water due to Hot Weather fro Refuse Teams,"GROCERY STORES, SUPERMARKETS"
22/07/2021,Chief Executive,TESCO STORE 3130,40.47,Water for the depot using a mixture of clubcard vouchers and transaction to credit card,"GROCERY STORES, SUPERMARKETS"
23/07/2021,Museum S/W,QD STORES,6.65,2X padlocks. One for Castle side gate and one for Castle main gate as a back up if integral lock fails.,DISCOUNT STORES
26/07/2021,Planning Admin,ZOOM.US 888-799-9666,112,Zoom account July 2021,TELECOM INCL PREPAID/RECURRING PHONE SVCS
27/07/2021,Commercial Team,AMZNMKTPLACE AMAZON.CO,9.91,Cost of 9.91 + VAT for supply of 1 x 5 litre Milton Fluid Floor Cleaner for JA/BCP,MISCELLANEOUS AND SPECIALTY RETAIL STORES
27/07/2021,Legal Services,WWW.MONEYCLAIM.GOV,35,Issuing Claim at CCMCC ,GOVERNMENT SERVICES-NOT ELSEWHERE CLASSIFIED
27/07/2021,Corporate,SOUTHEND COUNTY,31.5,,FINES
29/07/2021,Sheltered Housing,AMZNMKTPLACE AMAZON.CO,49.74,blue roll for lounges,MISCELLANEOUS AND SPECIALTY RETAIL STORES
30/07/2021,Animal Warden,DVLA VEHICLE TAX,277.5,12 MONTHS VED,TAX PAYMENTS
30/07/2021,Green Waste,DVLA VEHICLE TAX,302.5,12 months ved,TAX PAYMENTS
30/07/2021,Waste Management,DVLA VEHICLE TAX,562.5,12 MONTHS VED,TAX PAYMENTS
30/07/2021,Waste Management,DVLA VEHICLE TAX,562.5,12 MONTHS VED,TAX PAYMENTS
30/07/2021,Waste Management,DVLA VEHICLE TAX,562.5,,TAX PAYMENTS
30/07/2021,Waste Management,DVLA VEHICLE TAX,562.5,12 MONTHS VED,TAX PAYMENTS
30/07/2021,Waste Management,DVLA VEHICLE TAX,562.5,12 MONTHS VED,TAX PAYMENTS
30/07/2021,Waste Management,DVLA VEHICLE TAX,562.5,,TAX PAYMENTS
30/07/2021,Waste Management,DVLA VEHICLE TAX,562.5,12 MONTHS VED,TAX PAYMENTS
30/07/2021,Waste Management,DVLA VEHICLE TAX,282.5,6 MONTHS VED,TAX PAYMENTS
02/08/2021,Waste Management,TESCO PFS 3723,179.09,Fuel for Vehicle,SERVICE STATIONS WITH OR WITHOUT ANCILLARY SERVICE
02/08/2021,Corporate,WWW.TCPA.ORG.UK,60,,"ORGANIZATIONS, MEMBERSHIP-NOT ELSEWHERE CLASSIFIED"
03/08/2021,Museum S/W,MUSEUMS ASCTN,94,Renewal 2021-22 of professional membership ,ART DEALERS AND GALLERIES
03/08/2021,Waste Management,TESCO PFS 3723,-179.09,Refund Of Fuel Purchase. Paid via alternative method.,SERVICE STATIONS WITH OR WITHOUT ANCILLARY SERVICE
04/08/2021,Vehicle Maintenance,DVLA VEHICLE TAX,562.5,Road Tax For Refuse vehicle,TAX PAYMENTS
05/08/2021,Homelessness,TRAVELODGE,"3,147.14",Decant Accom,TRAVELODGE
05/08/2021,Corporate,WWW.LQM.CO.UK,234,,DIRECT MARKETING-OTHER DIRECT MARKETERS/NOT ELSEW.
06/08/2021,Vehicle Maintenance,MEDLOCK ELECTRICAL,70.5,Items for Fuel pump installation. Fuel trial of HVO Fuel,ELECTRICAL PARTS AND EQUIPMENT
09/08/2021,Street Cleansing,TOOLSTATION LIMITED,159.96,portable grinder for removing wheels for bins so bins can be recycled,"BUILDING MATERIALS, LUMBER STORES"
10/08/2021,Vehicle Maintenance,DVLA VEHICLE TAX,302.5,Vehicle Road Tax @ 300 + 2.50 CARD CHARGE,TAX PAYMENTS
10/08/2021,Vehicle Maintenance,DVLA VEHICLE TAX,167.5,Vehicle Road Tax for 165 + 2.50 Card Charge,TAX PAYMENTS
10/08/2021,Corporate,SQ  JULIE BARRATT LEGA,25,,PROFESSIONAL SERVICES-NOT ELSEWHERE CLASSIFIED
11/08/2021,Corporate,WH SMITH,11.96,,NEWS DEALERS AND NEWSSTANDS
12/08/2021,Chief Executive,PARCELFORCE WL,61.05,Cost for sending IT equipment to new starter ,"COURIER SVC-AIR & GROUND, FREIGHT FORWARDERS"
12/08/2021,Waste Management,DVSA,26,Hgv Theory Test Fee,GOVERNMENT SERVICES-NOT ELSEWHERE CLASSIFIED
16/08/2021,Sheltered Housing,AMZNMktplace,2.89,Lamp Insurance,MISCELLANEOUS AND SPECIALTY RETAIL STORES
16/08/2021,Sheltered Housing,AMZNMktplace,19.16,lamp shades,MISCELLANEOUS AND SPECIALTY RETAIL STORES
17/08/2021,Sheltered Housing,AMZNMktplace,18.32,blind,MISCELLANEOUS AND SPECIALTY RETAIL STORES
18/08/2021,Sheltered Housing,AMZNMktplace,10.28,Lamp shade,MISCELLANEOUS AND SPECIALTY RETAIL STORES
20/08/2021,New Depot (Canfield),WWW.PLANNING.CO,139.33,Planning Fee 116.  Service Charge 23.33.  VAT applied to Service Charge.,BUSINESS SERVICES-NOT ELSEWHERE CLASSIFIED
22/08/2021,Sheltered Housing,Amazon.co.uk A16NO6KU5,36.65,Kettles for sites,DIRECT MARKETING-OTHER DIRECT MARKETERS/NOT ELSEW.
23/08/2021,Lifeline,WWW.BROADBANDBUYER.CO.,59.48,digital adaptor - Lifelines - Receipt cant be added file to big,TELECOM INCL PREPAID/RECURRING PHONE SVCS
23/08/2021,New Depot (Canfield),WWW.PLANNING.CO,257.33,Planning Fee 234. Service Charge 23.33. VAT applied to Service Charge.,BUSINESS SERVICES-NOT ELSEWHERE CLASSIFIED
24/08/2021,Museum S/W,AMZNMKTPLACE AMAZON.CO,7.49,Mount board for exhitbions,MISCELLANEOUS AND SPECIALTY RETAIL STORES
24/08/2021,Museum S/W,AMZNMktplace,14.5,Mount board for exhibitions,MISCELLANEOUS AND SPECIALTY RETAIL STORES
24/08/2021,Sheltered Housing,AMZNMktplace,19.52,Velcro tape - sheltered,MISCELLANEOUS AND SPECIALTY RETAIL STORES
24/08/2021,Corporate,WWW.LABC.UK.COM,90,,BUSINESS SERVICES-NOT ELSEWHERE CLASSIFIED
26/08/2021,Housing Services,AMZNMktplace,4.99,Refills for pens - No receipt - file too large,MISCELLANEOUS AND SPECIALTY RETAIL STORES
26/08/2021,Sheltered Housing,AMZNMktplace,6.57,Glue for sheltered signs,MISCELLANEOUS AND SPECIALTY RETAIL STORES
26/08/2021,Corporate,ZOOM.US 888-799-9666,122.88,,TELECOM INCL PREPAID/RECURRING PHONE SVCS
27/08/2021,Licensing,UTTLESFORD DISTRIC,-108,,"ASSOCIATIONS-CIVIC, SOCIAL, AND FRATERNAL"
27/08/2021,Museum S/W,QD STORES,8.32,Replacement batteries for Covid hand sanitizers,DISCOUNT STORES
02/09/2021,Museum S/W,RIDGEONS SAFFRON WALDE,27.33,White obliterating paint to block out black illustrations on exhibition room wall.,"BUILDING MATERIALS, LUMBER STORES"
02/09/2021,Museum S/W,QD STORES,17.47,Magnetic boards for exhibition interactive,DISCOUNT STORES
02/09/2021,Waste Management,RIDGEONS SAFFRON WALDE,34.67,Safety Boots for loader,"BUILDING MATERIALS, LUMBER STORES"
02/09/2021,Corporate,TRAVELODGE,"1,087.99",,TRAVELODGE
04/09/2021,Waste Management,AMZNMktplace,114.39,12 x yoga matts for first aid training.,MISCELLANEOUS AND SPECIALTY RETAIL STORES
06/09/2021,Sheltered Housing,AMZNMKTPLACE AMAZON.CO,149.17,BINGO MACHINE - F/A,MISCELLANEOUS AND SPECIALTY RETAIL STORES
07/09/2021,Highway Ranger,RIDGEONS SAFFRON WALDE,49.05,Various Paint and equipment as per receipt,"BUILDING MATERIALS, LUMBER STORES"
07/09/2021,Licensing,UTTLESFORD DISTRIC,493,,"ASSOCIATIONS-CIVIC, SOCIAL, AND FRATERNAL"
09/09/2021,Sheltered Housing,SP   CROSSWORDSITE,13.52,CROSSWORDS FOR WOW,"GAME, TOY, AND HOBBY SHOPS"
10/09/2021,Museum S/W,QD STORES,3.88,Double sided and masking tape for Natural History procedures,DISCOUNT STORES
10/09/2021,Corporate,ZOOM.US 888-799-9666,109.62,,TELECOM INCL PREPAID/RECURRING PHONE SVCS
12/09/2021,Corporate,AMZNMKTPLACE AMAZON.CO,41.64,,MISCELLANEOUS AND SPECIALTY RETAIL STORES
13/09/2021,Corporate,MACHINE MART LTD,104,,"EQUIPMENT RENTAL&LEASING SVS, FURNTURE/TOOL RENTAL"
14/09/2021,Museum S/W,QD STORES,3.74,Mini paint rollers for new exhibition.,DISCOUNT STORES
15/09/2021,Sheltered Housing,AMZNMktplace,19.03,LIGHT BULBS ,MISCELLANEOUS AND SPECIALTY RETAIL STORES
15/09/2021,Sheltered Housing,AMZ LightingandMobileA,-6.58,refund for item never received- glue,MISCELLANEOUS AND SPECIALTY RETAIL STORES
15/09/2021,Corporate,WH SMITH,2.49,,NEWS DEALERS AND NEWSSTANDS
15/09/2021,Corporate,TESCO STORES-5958,6.25,,"GROCERY STORES, SUPERMARKETS"
16/09/2021,Museum S/W,WH SMITH,2.08,White adhesive paper dots for covering screw holes in exhibition displays,NEWS DEALERS AND NEWSSTANDS
16/09/2021,Sheltered Housing,AMZNMKTPLACE AMAZON.CO,197.5,HEATER FOR SHELTERED SITES,MISCELLANEOUS AND SPECIALTY RETAIL STORES
16/09/2021,Sheltered Housing,AMZNMktplace,28.45,CLIPBOARDS FOR RESIDENTS ,MISCELLANEOUS AND SPECIALTY RETAIL STORES
16/09/2021,Corporate,WAITROSE 135,18.08,,"GROCERY STORES, SUPERMARKETS"
16/09/2021,Corporate,WWW.LABC.UK.COM,90,,BUSINESS SERVICES-NOT ELSEWHERE CLASSIFIED
17/09/2021,Museum S/W,WH SMITH,4.16,White marker pens for new exhibition display.,NEWS DEALERS AND NEWSSTANDS
17/09/2021,Sheltered Housing,AMZNMktplace,24.92,KEYBOARD FOR F/A COMM LOUNGE,MISCELLANEOUS AND SPECIALTY RETAIL STORES
19/09/2021,Corporate,TESCO STORE 2574,6.63,,"GROCERY STORES, SUPERMARKETS"
20/09/2021,Revenues Admin,SOUTHEND COUNTY,289.5,,FINES
20/09/2021,Corporate,SAINSBURYS SMKTS,34.5,,"GROCERY STORES, SUPERMARKETS"
20/09/2021,Corporate,IGPP LTD,283.2,,OTHER SERVICES (NOT ELSEWHERE CLASSIFIED)
20/09/2021,Corporate,TESCO STORE 3130,5.2,,"GROCERY STORES, SUPERMARKETS"
20/09/2021,Corporate,WILKO RETAIL LIMITED,1,,MISCELLANEOUS GENERAL MERCHANDISE
20/09/2021,Corporate,TESCO STORE 2555,92,,"GROCERY STORES, SUPERMARKETS"
21/09/2021,Licensing,UTTLESFORD DISTRIC,-493,,"ASSOCIATIONS-CIVIC, SOCIAL, AND FRATERNAL"
21/09/2021,Corporate,ALEXANDRA WEBSITE,44.99,,MEN'S/WOMEN'S/CHILDREN'S UNIFORMS/COMMERCIAL CLOTH
22/09/2021,Sheltered Housing,AMZNMKTPLACE AMAZON.CO,9.48,Mattress protector for guest rooms,MISCELLANEOUS AND SPECIALTY RETAIL STORES
22/09/2021,Sheltered Housing,AMZNMKTPLACE AMAZON.CO,9.48,Mattress protector for guest room,MISCELLANEOUS AND SPECIALTY RETAIL STORES
26/09/2021,Corporate,ZOOM.US 888-799-9666,122.88,,TELECOM INCL PREPAID/RECURRING PHONE SVCS
27/09/2021,Corporate,WWW.WRITTLE.AC.UK,550,,"COLLEGES, UNIV, PRO SCHOOLS, JUNIOR COLLEGES"
28/09/2021,Sheltered Housing,AMZNMKTPLACE AMAZON.CO,44.16,office table for A/H office,MISCELLANEOUS AND SPECIALTY RETAIL STORES
28/09/2021,Sheltered Housing,AMZNMKTPLACE AMAZON.CO,5.79,USB port for laptop,MISCELLANEOUS AND SPECIALTY RETAIL STORES
28/09/2021,Corporate,QD STORES,41.41,,DISCOUNT STORES
29/09/2021,Museum S/W,Amazon.co.uk B32UI0PN5,6.2,,DIRECT MARKETING-OTHER DIRECT MARKETERS/NOT ELSEW.
01/10/2021,Chief Executive,WWW.LOCAL.GOV.UK,379,Chief Executive attending DCN Conference with the Leader,BUSINESS SERVICES-NOT ELSEWHERE CLASSIFIED
01/10/2021,Grounds Maintenance,JAY & ROB'S WINDSCREEN,210,Repairs to Vehicle following strimmer damage. Replacement rear screen ,AUTOMOTIVE SERVICE SHOPS
01/10/2021,Highway Ranger,C.B. MOWER SERVICES LT,130.7,Repairs to Long Reach Hedgecutter ,MISCELLANEOUS REPAIR SHOPS AND RELATED SERVICES
01/10/2021,Waste Management,SumUp   Phillas,116.67,Chief Exec Visit To Shire Hill Depot ,CATERERS
02/10/2021,Sheltered Housing,AMZNMktplace,17.04,Ext lead and i-phone charger for car,MISCELLANEOUS AND SPECIALTY RETAIL STORES
04/10/2021,"Depot, Gt Dunmow",TANKS-UK LIMITED,72,two one way valves for fuel tank,"COMMERCIAL EQUIPMENT, NOT ELSEWHERE CLASSIFIED"
05/10/2021,Benefits Admin,RAMADA HOTEL,85,Conference - overnight accomodation,"LODGING-HOTELS,MOTELS,RESORTS-NOT CLASSIFIED"
05/10/2021,Museum S/W,BUY SEA,14.7,shells for use in fossils session,"GIFT, CARD, NOVELTY AND SOUVENIR SHOPS"
05/10/2021,Museum S/W,FOSSILS FOR SALE,39.5,Fossils for fossils session box,MISCELLANEOUS GENERAL MERCHANDISE
06/10/2021,Benefits Admin,HOLIDAY INN,241.2,Conference - 2 nights overnight accommodation.,"LODGING-HOTELS,MOTELS,RESORTS-NOT CLASSIFIED"
06/10/2021,"Depot, Gt Dunmow",SumUp   Shawbear Servi,65.25,Catering for chief executive visit.,"EATING PLACES, RESTAURANTS"
06/10/2021,Corporate,TESCO STORE 2172,26,,"GROCERY STORES, SUPERMARKETS"
06/10/2021,Corporate,TESCO STORE 2172,15,,"GROCERY STORES, SUPERMARKETS"
06/10/2021,Corporate,TESCO STORE 2172,25,,"GROCERY STORES, SUPERMARKETS"
06/10/2021,Corporate,TESCO STORE 2172,15,,"GROCERY STORES, SUPERMARKETS"
06/10/2021,Corporate,TESCO STORE 2172,15,,"GROCERY STORES, SUPERMARKETS"
06/10/2021,Corporate,TESCO STORE 2172,15,,"GROCERY STORES, SUPERMARKETS"
06/10/2021,Corporate,TESCO STORE 2172,15,,"GROCERY STORES, SUPERMARKETS"
06/10/2021,Corporate,TESCO STORE 2172,25,,"GROCERY STORES, SUPERMARKETS"
06/10/2021,Corporate,TESCO STORE 2172,15,,"GROCERY STORES, SUPERMARKETS"
07/10/2021,Benefits Admin,SHELTER TRADING LTD,656.25,Conference - 2 nights overnight accommodation,"GIFT, CARD, NOVELTY AND SOUVENIR SHOPS"
07/10/2021,Museum S/W,EB  REGROUP RETHINK RE,35,Team Ticket for Conference for Museum staff,BUSINESS SERVICES-NOT ELSEWHERE CLASSIFIED
07/10/2021,Museum S/W,QD STORES,4.98,spray paint for Halloween evening masks,DISCOUNT STORES
12/10/2021,Sheltered Housing,AMZNMktplace,156.25,fobs for sheltered sites,MISCELLANEOUS AND SPECIALTY RETAIL STORES
13/10/2021,Licensing,Amazon.co.uk EI1WD3O05,125,Legal Book,DIRECT MARKETING-OTHER DIRECT MARKETERS/NOT ELSEW.
13/10/2021,Museum S/W,QD STORES,7.37,Foam mounting tape and masking tape for loan/session boxes making and and activities,DISCOUNT STORES
13/10/2021,Museum S/W,SAFFRON WALDEN MUSEUM,2.5,trilobite for use in fossils session,TOURIST ATTRACTIONS AND EXHIBITS
13/10/2021,Museum S/W,SAFFRON WALDEN MUSEUM,20,2 bags of fossils for events and activities,TOURIST ATTRACTIONS AND EXHIBITS
13/10/2021,Museum S/W,MEDLOCK ELECTRICAL,22.2,Light bulbs for Museum galleries - replacements and spares,ELECTRICAL PARTS AND EQUIPMENT
13/10/2021,New Depot (Canfield),LANGTHORNS PLANTERY,211.92,Landscaping Materials for premises,AGRICULTURAL COOPERATIVES
13/10/2021,Planning Admin,HAYMARKET MEDIA GROUP,495,Planning for Housing 2021 seminar,"CONSULTING, MANAGEMENT, AND PUBLIC RELATIONS SVCS"
13/10/2021,Street Serv Man,WWW.TCFIXINGS.CO.UK,61.85,new padlock for gates at Shire Hill Saffron Walden,"BUILDING MATERIALS, LUMBER STORES"
14/10/2021,Green Waste,DVLA VEHICLE TAX,302.5,VED,TAX PAYMENTS
14/10/2021,Museum S/W,LOCK STOCK AND BARRELL,11.65,Two extra Museum front door keys ,BUSINESS SERVICES-NOT ELSEWHERE CLASSIFIED
14/10/2021,Sheltered Housing,QD STORES,7.47,Sundries for lifeline cleaning,DISCOUNT STORES
14/10/2021,Corporate,APPLE.COM/BILL,47.99,,RECORD SHOPS
15/10/2021,Corporate,LONG-BEACH.CO.UK,360,,CAMPGROUNDS AND TRAILER PARKS
19/10/2021,"Depot, Gt Dunmow",DVSA,26,theory test for HGV,GOVERNMENT SERVICES-NOT ELSEWHERE CLASSIFIED
19/10/2021,"Depot, Gt Dunmow",DVSA,11,hazard perception test for HGV,GOVERNMENT SERVICES-NOT ELSEWHERE CLASSIFIED
19/10/2021,Museum S/W,WAITROSE 135,2.45,Tomatoes and salt for Egypt session,"GROCERY STORES, SUPERMARKETS"
20/10/2021,Housing Services,WAITROSE 101,"1,750.00",Compensation,"GROCERY STORES, SUPERMARKETS"
20/10/2021,Housing Services,WAITROSE 101,"1,875.00",Compensation,"GROCERY STORES, SUPERMARKETS"
21/10/2021,Museum S/W,QD STORES,7.73,"Plastic storage box and masking tape, for use at Shirehill ",DISCOUNT STORES
21/10/2021,Sheltered Housing,HOMEBASE.CO.UK,28,Patio cleaner and pots for Reynolds Court garden,HOME SUPPLY WAREHOUSE STORES
21/10/2021,Corporate,SAFFRON WALDEN MUSEUM,2,,TOURIST ATTRACTIONS AND EXHIBITS
22/10/2021,Sheltered Housing,HOMEBASE LTD 643,8.54,Slate and compost for Reynolds Court,HOME SUPPLY WAREHOUSE STORES
25/10/2021,Building Surveying,CANVA  I03219-16031734,99.99,,PHOTOGRAPHIC STUDIOS
26/10/2021,Legal Services,WWW.THELAWSOCIETY.ORG,306,Practicing Certificate for - Solicitor,"ORGANIZATIONS, MEMBERSHIP-NOT ELSEWHERE CLASSIFIED"
26/10/2021,Museum S/W,WWW.PRESERVATIONEQUIPM,86.36,"Collections conservation supplies: pest traps, cleaning brushes and small archival plastic boxes for archaeological finds","PUBLIC WAREHOUSING-FARM, REFRIG GOODS, HHG STORAGE"
26/10/2021,Planning Policy,ZOOM.US 888-799-9666,112,Zoom webinar license for Oct - Nov 2021/22,TELECOM INCL PREPAID/RECURRING PHONE SVCS
26/10/2021,Corporate,SAFETYCULTURE,"1,195.77",,COMPUTER SOFTWARE STORES
27/10/2021,Museum S/W,QD STORES,2.48,Kettle descaler for Museum and Shire Hill Kitchens,DISCOUNT STORES
28/10/2021,Museum S/W,MUSEUMSASSC,196.42,"Museums Association Institutional Membership for Saffron Walden Museum Sept 2021 - Aug 2022","ORGANIZATIONS, CHARITABLE AND SOCIAL SERVICES"
29/10/2021,Museum S/W,Well Pharmacy 200559,9.15,Two packets of cold patches for first aid purposes,"DRUG STORES, PHARMACIES"
29/10/2021,Vehicle Maintenance,PIRTEK (CAMBRIDGE) LTD,305.16,,INDUSTRIAL SUPPLIES NOT ELSEWHERE CLASSIFIED
01/11/2021,Museum S/W,Klarna Sensory Educati,21.57,"counting insects and easy hold magnifier for eary years ""mini beasts"" loan box","GAME, TOY, AND HOBBY SHOPS"
01/11/2021,Museum S/W,AMZNMktplace,12.44,models for early years mini beasts box,MISCELLANEOUS AND SPECIALTY RETAIL STORES
02/11/2021,Museum S/W,Amazon.co.uk M60A31PA5,5.94,Very hungry caterpillar book for early years mini beasts loan box,DIRECT MARKETING-OTHER DIRECT MARKETERS/NOT ELSEW.
02/11/2021,Corporate,UKPLANNINGMAPS 710286,49.2,,MISCELLANEOUS AND SPECIALTY RETAIL STORES
02/11/2021,Corporate,RICARDO-AEA LTD,65,,"CONSULTING, MANAGEMENT, AND PUBLIC RELATIONS SVCS"
03/11/2021,Museum S/W,AMZNMktplace,15.82,counting lady birds for early years loan box,MISCELLANEOUS AND SPECIALTY RETAIL STORES
05/11/2021,Highway Ranger,GEORGE BROWNS,435.42,PPE ,MISCELLANEOUS AND SPECIALTY RETAIL STORES
05/11/2021,Highway Ranger,WICKES BISHOP'S STORTF,46.68,Materials for Rangers,"BUILDING MATERIALS, LUMBER STORES"
05/11/2021,Museum S/W,AMZNMKTPLACE AMAZON.CO,5.82,pipe cleaners for viking session,MISCELLANEOUS AND SPECIALTY RETAIL STORES
06/11/2021,Museum S/W,AMZNMktplace,12.47,wool for viking session,MISCELLANEOUS AND SPECIALTY RETAIL STORES
06/11/2021,Museum S/W,WAITROSE 135,6.1,Salt and tomatoes for egypt session 90 pupils,"GROCERY STORES, SUPERMARKETS"
06/11/2021,Museum S/W,QD STORES,11.67,3 x large plastic tubs for loan boxes,DISCOUNT STORES
08/11/2021,Highway Ranger,HOMEBASE LTD 619,54.17,Jigsaw and Blades For Rangers,HOME SUPPLY WAREHOUSE STORES
08/11/2021,Highway Ranger,WICKES BISHOP'S STORTF,-29.17,Return Faulty Tool For Refund,"BUILDING MATERIALS, LUMBER STORES"
09/11/2021,Housing Services,SP   CROSSWORDSITE,9.35,Tenant newsletter,"GAME, TOY, AND HOBBY SHOPS"
09/11/2021,Licensing,AMZNMKTPLACE AMAZON.CO,23.99,,MISCELLANEOUS AND SPECIALTY RETAIL STORES
10/11/2021,Corporate,R H ENVIRONMENTAL LTD,150,,COMPUTER SOFTWARE STORES
11/11/2021,Licensing,CHARTERED INSTITUTE OF,45,,"ORGANIZATIONS, CHARITABLE AND SOCIAL SERVICES"
14/11/2021,"Depot, Gt Dunmow",TEMERAIRE,44.38,Catering for remembrance sunday parade,"EATING PLACES, RESTAURANTS"
14/11/2021,Sheltered Housing,AMZNMktplace,29.28,Padlock and hasp for sheltered resident,MISCELLANEOUS AND SPECIALTY RETAIL STORES
15/11/2021,Vehicle Maintenance,DVLA VEHICLE TAX,167.5,Vehicle Tax ,TAX PAYMENTS
15/11/2021,Vehicle Maintenance,DVLA VEHICLE TAX,167.5,Vehicle Tax,TAX PAYMENTS
15/11/2021,Corporate,CHARTERED INSTITUTE OF,45,,"ORGANIZATIONS, CHARITABLE AND SOCIAL SERVICES"
16/11/2021,Vehicle Maintenance,DVLA VEHICLE TAX,562.5,vehicle tax ,TAX PAYMENTS
16/11/2021,Vehicle Maintenance,DVLA VEHICLE TAX,302.5,Vehicle Tax ,TAX PAYMENTS
16/11/2021,Corporate,SCREWFIX DIR LTD,49.98,,"BUILDING MATERIALS, LUMBER STORES"
18/11/2021,Museum S/W,VALUE PRODUCTS LTD,35,clip frames order ,MISCELLANEOUS AND SPECIALTY RETAIL STORES
18/11/2021,Sheltered Housing,Amazon.co.uk 2W1FC4XO5,31.63,fire box for sheltered site,DIRECT MARKETING-OTHER DIRECT MARKETERS/NOT ELSEW.
18/11/2021,Sheltered Housing,Amazon.co.uk V33QT5EG5,31.63,fire box for sheltered site,DIRECT MARKETING-OTHER DIRECT MARKETERS/NOT ELSEW.
18/11/2021,Sheltered Housing,Amazon.co.uk 5F2JO2U15,31.63,fire box for sheltered site,DIRECT MARKETING-OTHER DIRECT MARKETERS/NOT ELSEW.
18/11/2021,Waste Management,WWW.TCFIXINGS.CO.UK,46.83,1 x pair safety boots ,"BUILDING MATERIALS, LUMBER STORES"
21/11/2021,Sheltered Housing,Amazon.co.uk 081J931X5,31.63,fire box for sheltered site,DIRECT MARKETING-OTHER DIRECT MARKETERS/NOT ELSEW.
21/11/2021,Sheltered Housing,Amazon.co.uk HT4847MI5,31.63,fire box for sheltered site,DIRECT MARKETING-OTHER DIRECT MARKETERS/NOT ELSEW.
21/11/2021,Sheltered Housing,Amazon.co.uk Y28B66FW5,31.63,fire box for sheltered site,DIRECT MARKETING-OTHER DIRECT MARKETERS/NOT ELSEW.
21/11/2021,Sheltered Housing,Amazon.co.uk HH63312A5,31.63,fire box for sheltered site,DIRECT MARKETING-OTHER DIRECT MARKETERS/NOT ELSEW.
21/11/2021,Sheltered Housing,Amazon.co.uk 2N3I38TB5,31.63,fire box for sheltered site,DIRECT MARKETING-OTHER DIRECT MARKETERS/NOT ELSEW.
22/11/2021,Highway Ranger,C.B. MOWER SERVICES LT,36.7,Repairs to Long Reach Hedgecutter,MISCELLANEOUS REPAIR SHOPS AND RELATED SERVICES
22/11/2021,Sheltered Housing,Amazon.co.uk ZP6NX61F5,8.52,printer cable,DIRECT MARKETING-OTHER DIRECT MARKETERS/NOT ELSEW.
23/11/2021,Development Control,PAYPAL  RTPI,45,Administration fee for RTPI,"ORGANIZATIONS, CHARITABLE AND SOCIAL SERVICES"
23/11/2021,Museum S/W,QD STORES,8.55,"2 x magnifiers, multi pack of large paint brushes and a tape measure for archeology loan boxes",DISCOUNT STORES
24/11/2021,Housing Services,C I H,229,CIH membership,"ASSOCIATIONS-CIVIC, SOCIAL, AND FRATERNAL"
24/11/2021,Housing Services,WAITROSE 101,11.25,Tenant Panel cards,"GROCERY STORES, SUPERMARKETS"
24/11/2021,Revenues Admin,SOUTHEND COUNTY,402.5,,FINES
24/11/2021,Temp Accommodation,AMZNMktplace,18.32,Temp Accom equipment,MISCELLANEOUS AND SPECIALTY RETAIL STORES
24/11/2021,Corporate,Amazon.co.uk TP85B6535,10,,DIRECT MARKETING-OTHER DIRECT MARKETERS/NOT ELSEW.
25/11/2021,Legal Services,WWW.MONEYCLAIM.GOV,115,Submitting a new claim ,GOVERNMENT SERVICES-NOT ELSEWHERE CLASSIFIED
25/11/2021,Museum S/W,QD STORES,8.33,8 small plastic tubs for  2 x new archeology loan boxes,DISCOUNT STORES
25/11/2021,Sheltered Housing,Amazon.co.uk 109E903Y5,19.3,Sundries- Matting,DIRECT MARKETING-OTHER DIRECT MARKETERS/NOT ELSEW.
26/11/2021,Planning Policy,ZOOM.US 888-799-9666,112,Zoom webinar license for Nov - Dec 2021/22,TELECOM INCL PREPAID/RECURRING PHONE SVCS
29/11/2021,"Depot, Gt Dunmow",BRAINTREE SF CONNECT,214.06,fuel for HGV lorry,SERVICE STATIONS WITH OR WITHOUT ANCILLARY SERVICE
29/11/2021,Corporate,EB  ONLINE TRAINING UN,228,,BUSINESS SERVICES-NOT ELSEWHERE CLASSIFIED
30/11/2021,Museum S/W,WAITROSE 135,9.22,Catering for evening event.,"GROCERY STORES, SUPERMARKETS"
30/11/2021,Museum S/W,PAYPAL  JHTSUPPLIES,28.65,,OTHER SERVICES (NOT ELSEWHERE CLASSIFIED)
30/11/2021,Museum S/W,TOOLSTATION UK,19.98,Primer to prevent off gassing of MDF used for mounting and display of taxidermy specimens,HARDWARE STORES
30/11/2021,Museum S/W,CELTICSUSTAINABLES CO,40.42,"Lost language of Nature project, paint suitable for use on taxidermy bases etc ",HOME SUPPLY WAREHOUSE STORES
30/11/2021,Sheltered Housing,HOMEBASE LTD 619,66.25,Christmas decorations for sheltered scheme,HOME SUPPLY WAREHOUSE STORES
30/11/2021,Sheltered Housing,AMZNMKTPLACE AMAZON.CO,23.32,Christmas tree for The Close,MISCELLANEOUS AND SPECIALTY RETAIL STORES
30/11/2021,Sheltered Housing,AMZNMktplace,47.49,Folding trolley for Vicarage Mead residents,MISCELLANEOUS AND SPECIALTY RETAIL STORES
01/12/2021,Housing Services,TESCO STORE 2172,145,Tenant Panel vouchers,"GROCERY STORES, SUPERMARKETS"
01/12/2021,Museum S/W,Amazon.co.uk 4M48M1LW5,18.96,protective anti trip mat for trailing cables 1.8m,DIRECT MARKETING-OTHER DIRECT MARKETERS/NOT ELSEW.
02/12/2021,Housing Services,SPRINGWELL NURSERY,100,Garden vouchers,LAWN AND GARDEN SUPPLY STORES
02/12/2021,Street Cleansing,RIDGEONS SAFFRON WALDE,78.06,6 X WOODEN POST'S FOR DOG BIN INSTILLATION,"BUILDING MATERIALS, LUMBER STORES"
03/12/2021,Democratic Rep,SAFFRON WALDEN TOURIST,50,Hamper,TOURIST ATTRACTIONS AND EXHIBITS
07/12/2021,Museum S/W,QD STORES,8.32,New batteries for Covid sanitizers,DISCOUNT STORES
07/12/2021,Sheltered Housing,AMZNMktplace,20.98,Phone cables for staff,MISCELLANEOUS AND SPECIALTY RETAIL STORES
07/12/2021,Sheltered Housing,AMZNMktplace,5.43,USB cable for staff,MISCELLANEOUS AND SPECIALTY RETAIL STORES
07/12/2021,Corporate,STAGEDEPOT.CO.UK,36.96,,HARDWARE STORES
09/12/2021,Chief Executive,TESCO STORE 3108,12.4,Payment for the difference in use of Tesco Clubcard Vouchers ,"GROCERY STORES, SUPERMARKETS"
09/12/2021,"Depot, Gt Dunmow",BP STANSTEAD CONNECT,294.27,fuel for vehicle ,SERVICE STATIONS WITH OR WITHOUT ANCILLARY SERVICE
09/12/2021,Museum S/W,QD-SAFFRON WALDEN,6.66,Extension lead to run a dehumidifier in the Museum low store,MISCELLANEOUS AND SPECIALTY RETAIL STORES
09/12/2021,Sheltered Housing,AMZNMKTPLACE AMAZON.CO,7.42,Carry bags for staff,MISCELLANEOUS AND SPECIALTY RETAIL STORES
09/12/2021,Sheltered Housing,AMZNMKTPLACE AMAZON.CO,7.42,Carry bags for staff,MISCELLANEOUS AND SPECIALTY RETAIL STORES
09/12/2021,Sheltered Housing,AMZNMKTPLACE AMAZON.CO,7.42,Carry bags for staff,MISCELLANEOUS AND SPECIALTY RETAIL STORES
10/12/2021,Highway Ranger,George Browns Ltd Grea,-57.67,refund for strimmer heads returned to supplier,LAWN AND GARDEN SUPPLY STORES
10/12/2021,Highway Ranger,George Browns Ltd Grea,57.67,Strimmer Heads for Strimmer,LAWN AND GARDEN SUPPLY STORES
13/12/2021,Chief Executive,TESCO STORE 3108,17.89,Payment for the Difference in use of Tesco Clubcard vouchers for the Foodbank Christmas order,"GROCERY STORES, SUPERMARKETS"
13/12/2021,Chief Executive,SP   THE PANIC ROOM ON,168,Payment for the Licences ,"GAME, TOY, AND HOBBY SHOPS"
16/12/2021,Sheltered Housing,AMZNMktplace,37.25,Shower curtains for residents at Hatherley court,MISCELLANEOUS AND SPECIALTY RETAIL STORES
16/12/2021,Sheltered Housing,AMZNMktplace,74.99,Hair salon chair ,MISCELLANEOUS AND SPECIALTY RETAIL STORES
16/12/2021,Corporate,Amazon.co.uk A75XZ31P5,118.35,,DIRECT MARKETING-OTHER DIRECT MARKETERS/NOT ELSEW.
17/12/2021,Vehicle Maintenance,JAMES HART CHORLEY LIM,"1,210.00",Axle C/W stubs and hubs,"AUTOMOTIVE PARTS, ACCESSORIES STORES"
20/12/2021,Street Serv Man,ZTL Saffron Signs,192.5,New Signs for Covid Restrictions for use at Shire Hill Depot,MISCELLANEOUS AND SPECIALTY RETAIL STORES
21/12/2021,Waste Management,PHILLERS,116.67,Catering for Chief Exec Visit ,FAST FOOD RESTAURANTS
23/12/2021,"Depot, Gt Dunmow",SumUp   Shawbear Servi,97.5,Catering for Christmas chief exec,"EATING PLACES, RESTAURANTS"
23/12/2021,Museum S/W,AMZNMKTPLACE AMAZON.CO,38.99,,MISCELLANEOUS AND SPECIALTY RETAIL STORES
23/12/2021,Vehicle Maintenance,DVLA VEHICLE TAX,302.5,Vehicle Tax,TAX PAYMENTS
23/12/2021,Vehicle Maintenance,BRAINTREE SF CONNECT,166.67,Fuel ,SERVICE STATIONS WITH OR WITHOUT ANCILLARY SERVICE
23/12/2021,Vehicle Maintenance,DVLA VEHICLE TAX,107.5,Vehicle Tax ,TAX PAYMENTS
23/12/2021,Vehicle Maintenance,DVLA VEHICLE TAX,302.5,Vehicle Tax,TAX PAYMENTS
23/12/2021,Corporate,CHARTERED INSTITUTE OF,99,,"ORGANIZATIONS, CHARITABLE AND SOCIAL SERVICES"
26/12/2021,Corporate,ZOOM.US 888-799-9666,122.88,,TELECOM INCL PREPAID/RECURRING PHONE SVCS
02/01/2022,Sheltered Housing,SPORTSDIRECT.COM,16.65,Two snooker cues for sheltered housing ,SPORTING GOODS STORES
05/01/2022,Animal Warden,THE STANWELL HEATHROW,61.33,Cost of 1 person accommodation at hotel ,"LODGING-HOTELS,MOTELS,RESORTS-NOT CLASSIFIED"
05/01/2022,Vehicle Maintenance,TESCO PFS 3969,124.92,Fuel card issue,SERVICE STATIONS WITH OR WITHOUT ANCILLARY SERVICE
06/01/2022,Env Protection,CHARTERED INSTITUTE OF,200,Cost of 4 x Mini Webinars,"ORGANIZATIONS, CHARITABLE AND SOCIAL SERVICES"
06/01/2022,Housing Services,AMZNMktplace,28.43,2022 Diaries for staff,MISCELLANEOUS AND SPECIALTY RETAIL STORES
07/01/2022,Housing Services,TESCO STORE 2574,100,TP provisions,"GROCERY STORES, SUPERMARKETS"
08/01/2022,Museum S/W,Wix.com,10.38,Payment for learning site - yearly fee for domain,DIGITAL GOODS SOFTWARE APPLICATIONS
12/01/2022,Waste Management,RIDGEONS SAFFRON WALDE,45,Safety boots,"BUILDING MATERIALS, LUMBER STORES"
12/01/2022,Waste Management,AMZNMKTPLACE AMAZON.CO,36.8,Safety boots ,MISCELLANEOUS AND SPECIALTY RETAIL STORES
13/01/2022,"Depot, Gt Dunmow",BRAINTREE SF CONNECT,200.01,Fuel for vehicle,SERVICE STATIONS WITH OR WITHOUT ANCILLARY SERVICE
13/01/2022,Museum S/W,TESCO STORE 3108,38.3,Drinks for x 3 events and food for x1 event,"GROCERY STORES, SUPERMARKETS"
13/01/2022,Planning Policy,KNOWLEDGETRAIN.CO.UK,449,Online Foundation Course,SCHOOLS & EDUCATIONAL SVC-NOT ELSEWHERE CLASSIFIED
14/01/2022,Homelessness,HOMEBASE.CO.UK,22.5,Temp accommodation curtain pole,HOME SUPPLY WAREHOUSE STORES
14/01/2022,New Depot (Canfield),COYLES CAR CARE,17.48,Cleaning material,"AUTOMOTIVE PARTS, ACCESSORIES STORES"
17/01/2022,Chief Executive,TESCO STORE 3130,14.8,Christmas Foodbank order (part one) using Tesco Clubcard vouchers - difference due to voucher combination amounts ,"GROCERY STORES, SUPERMARKETS"
18/01/2022,"Depot, Gt Dunmow",BP STANSTEAD CONNECT,245.02,Fuel for vehicles,SERVICE STATIONS WITH OR WITHOUT ANCILLARY SERVICE
18/01/2022,Museum S/W,WH SMITH,2.66,Milestone Birthday card for Welcome Volunteer,NEWS DEALERS AND NEWSSTANDS
18/01/2022,Vehicle Maintenance,DVLA VEHICLE TAX,562.5,Vehicle tax ,TAX PAYMENTS
19/01/2022,New Depot (Canfield),COYLES CAR CARE,13.32,Cleaning material,"AUTOMOTIVE PARTS, ACCESSORIES STORES"
19/01/2022,Sheltered Housing,HOMEBASE LTD 619,13.04,Sundries for sheltered sites,HOME SUPPLY WAREHOUSE STORES
19/01/2022,Vehicle Maintenance,RIDGEONS SAFFRON WALDE,9.01,Squeegee with handle and spare handle,"BUILDING MATERIALS, LUMBER STORES"
21/01/2022,Museum S/W,MEDLOCK ELECTRICAL,8.2,Replacement florescent tube for museum display case,ELECTRICAL PARTS AND EQUIPMENT
21/01/2022,Museum S/W,QD-SAFFRON WALDEN,1.24,Two pin to three pin plug converter for store dehumidifier,MISCELLANEOUS AND SPECIALTY RETAIL STORES
24/01/2022,Chief Executive,TESCO STORE 3130,13.79,Foodbank Order - cost of difference between vouchers and spend,"GROCERY STORES, SUPERMARKETS"
24/01/2022,Chief Executive,TESCO STORE 3130,-13.79,Credit Tesco Foodbank second order in January - difference between vouchers and costs,"GROCERY STORES, SUPERMARKETS"
24/01/2022,Museum S/W,Wix.com,114,Wix learning website hosting for one year,DIGITAL GOODS SOFTWARE APPLICATIONS
24/01/2022,Museum S/W,TESCO STORE 3108,5.25,Food for morning event,"GROCERY STORES, SUPERMARKETS"
24/01/2022,Sheltered Housing,AMZNMktplace,16.66,Mugs for lounge at sheltered housing,MISCELLANEOUS AND SPECIALTY RETAIL STORES
24/01/2022,Sheltered Housing,AMZNMktplace,33.32,Wheelbarrow for sheltered housing,MISCELLANEOUS AND SPECIALTY RETAIL STORES
24/01/2022,Sheltered Housing,AMZNMktplace,48.32,Cutlery for residents at sheltered housing,MISCELLANEOUS AND SPECIALTY RETAIL STORES
25/01/2022,Development Control,AMZNMKTPLACE AMAZON.CO,72.22,"Workstation equipment - wrist rest, lumber support, laptop raiser, vertical mouse",MISCELLANEOUS AND SPECIALTY RETAIL STORES
25/01/2022,Licensing,UTTLESFORD DISTRIC,218,Used to test idox,"ASSOCIATIONS-CIVIC, SOCIAL, AND FRATERNAL"
25/01/2022,Sheltered Housing,AMZNMktplace,129.95,Crockery for residents at sheltered housing,MISCELLANEOUS AND SPECIALTY RETAIL STORES
26/01/2022,Commercial Team,ALEXANDRA WEBSITE,85.02,Coats and Hats,MEN'S/WOMEN'S/CHILDREN'S UNIFORMS/COMMERCIAL CLOTH
26/01/2022,Development Control,ZOOM.US 888-799-9666,112,Zoom Webinar 1000 - Jan 2022,TELECOM INCL PREPAID/RECURRING PHONE SVCS
26/01/2022,Museum S/W,QD-SAFFRON WALDEN,5.82,Multi-plug extension lead ,MISCELLANEOUS AND SPECIALTY RETAIL STORES
26/01/2022,Museum S/W,LOCK STOCK AND BARRELL,6.25,30 key tags for labelling of storage cabinet keys,BUSINESS SERVICES-NOT ELSEWHERE CLASSIFIED
28/01/2022,Development Control,WP ENGINE,216,Zoom 2 x 2 licenses Pro Annual,COMPUTER NETWORK/INFORMATION SERVICES
28/01/2022,Vehicle Maintenance,VALUE PRODUCTS LTD,24.9,Warning signs for battery safety box,MISCELLANEOUS AND SPECIALTY RETAIL STORES
28/01/2022,Vehicle Maintenance,WWW.LABELSANDTAGS.CO.U,49.2,Labels for engineering department wheel tighten,MISCELLANEOUS PUBLISHING AND PRINTING
28/01/2022,Corporate,WH SMITH,4.5,,NEWS DEALERS AND NEWSSTANDS
31/01/2022,Street Serv Man,D4DRIVERS,45.83,Driver medical,"DOCTORS, (NOT ELSEWHERE CLASSIFIED)"
01/02/2022,Food Inspection,SAFETYCULTURE,120.61,iAuditor Food Inspection software ,COMPUTER SOFTWARE STORES
01/02/2022,Museum S/W,AMZNMKTPLACE AMAZON.CO,31.65,Clay for STS project,MISCELLANEOUS AND SPECIALTY RETAIL STORES
01/02/2022,Museum S/W,Amazon.co.uk A40YR4C85,7.44,Materials for STS schools project,DIRECT MARKETING-OTHER DIRECT MARKETERS/NOT ELSEW.
01/02/2022,Museum S/W,AMZNMKTPLACE AMAZON.CO,18.48,"Grey board, materials for STS schools project",MISCELLANEOUS AND SPECIALTY RETAIL STORES
01/02/2022,Museum S/W,AMZNMktplace,9.96,Foam for STS schools project,MISCELLANEOUS AND SPECIALTY RETAIL STORES
01/02/2022,Museum S/W,AMZNMktplace,13.25,Coloured paper for STS schools workshop,MISCELLANEOUS AND SPECIALTY RETAIL STORES
02/02/2022,Little Canfield Business Park,TESCO STORE 2574,8.91,Cleaning materials,"GROCERY STORES, SUPERMARKETS"
02/02/2022,Museum S/W,AMZNMktplace,10.82,Tracing paper for STS workshop,MISCELLANEOUS AND SPECIALTY RETAIL STORES
03/02/2022,Licensing,UTTLESFORD DISTRIC,218,Used to test idox,"ASSOCIATIONS-CIVIC, SOCIAL, AND FRATERNAL"
03/02/2022,Museum S/W,COLORCRAFT,4,Tweezers for conservation work,"ARTIST SUPPLY STORES, CRAFT SHOPS"
03/02/2022,Sheltered Housing,AMZNMktplace,23.32,Blinds for sheltered housing,MISCELLANEOUS AND SPECIALTY RETAIL STORES
04/02/2022,Highway Ranger,WWW.TCFIXINGS.CO.UK,3.51,"Linch Pins for trailer, securing pins for rear gate.","BUILDING MATERIALS, LUMBER STORES"
04/02/2022,Highway Ranger,MPD - SWALDEN 53,42.82,New battery for wood chipper,MOTOR VEHICLE SUPPLIES AND NEW PARTS
07/02/2022,Revenues Admin,SOUTHEND COUNTY,231.5,Court Fee Revenues,FINES
08/02/2022,Sheltered Housing,AMZNMktplace,24.92,Glasses - Sheltered housing ,MISCELLANEOUS AND SPECIALTY RETAIL STORES
09/02/2022,Chairman,SP   RBLI,129.99,Queens green canopy plaque (with stakes) for tree planting ceremony,MISCELLANEOUS GENERAL MERCHANDISE
09/02/2022,"Depot, Gt Dunmow",IDHDIRECT.CO.UK,780,Gas cylinder cage no 1,INDUSTRIAL SUPPLIES NOT ELSEWHERE CLASSIFIED
09/02/2022,"Depot, Gt Dunmow",IDHDIRECT.CO.UK,780,Gas cylinder cage no 2,INDUSTRIAL SUPPLIES NOT ELSEWHERE CLASSIFIED
09/02/2022,Env Protection,PCS Association Of Noi,99,Supply of 1 x RED Book ,"ASSOCIATIONS-CIVIC, SOCIAL, AND FRATERNAL"
09/02/2022,Housing Services,AMZNMKTPLACE AMAZON.CO,74.55,Cork boards for four acres,MISCELLANEOUS AND SPECIALTY RETAIL STORES
09/02/2022,Corporate,Flir,741.59,,CAMERA AND PHOTOGRAPHIC SUPPLY STORES
10/02/2022,Chairman,SP   FLAGS AND FLAGPOL,32.95,Queen's Platinum Jubilee Flag,COMPUTER SOFTWARE STORES
10/02/2022,Street Serv Man,D4DRIVERS,45.83,Driver Medical ,"DOCTORS, (NOT ELSEWHERE CLASSIFIED)"
10/02/2022,Vehicle Maintenance,AQUAJET CLEANING EQUIP,130.58,Repair's to Pressure Washer ,"SANITATION, POLISHING & SPECIALITY CLEANING PREP"
11/02/2022,Licensing,UTTLESFORD DISTRIC,-218,used to test idox,"ASSOCIATIONS-CIVIC, SOCIAL, AND FRATERNAL"
11/02/2022,Licensing,UTTLESFORD DISTRIC,-218,used to test idox,"ASSOCIATIONS-CIVIC, SOCIAL, AND FRATERNAL"
12/02/2022,Housing Services,TESCO STORE 2574,25,TP prize voucher,"GROCERY STORES, SUPERMARKETS"
16/02/2022,Border Inspection,APPLE.COM/BILL,47.99,PDF software renewal,DIGITAL GOODS AUDIOVISUAL MEDIA
16/02/2022,Housing Services,AMZNMktplace,86.49,Items for trailer,MISCELLANEOUS AND SPECIALTY RETAIL STORES
17/02/2022,Museum S/W,QD-SAFFRON WALDEN,4.15,New batteries for Museum toilet seat donations box,MISCELLANEOUS AND SPECIALTY RETAIL STORES
22/02/2022,Legal Services,WWW.MONEYCLAIM.GOV,83,Payment for warrant of Control ,GOVERNMENT SERVICES-NOT ELSEWHERE CLASSIFIED
22/02/2022,Sheltered Housing,AMZNMKTPLACE AMAZON.CO,7.21,Air freshners for Sheltered scheme,MISCELLANEOUS AND SPECIALTY RETAIL STORES
22/02/2022,Sheltered Housing,Amazon.co.uk 2R73G80A4,19.12,Kettle for sheltered site,DIRECT MARKETING-OTHER DIRECT MARKETERS/NOT ELSEW.
22/02/2022,Waste Management,D4DRIVERS,45.83,Driver HGV Medical ,"DOCTORS, (NOT ELSEWHERE CLASSIFIED)"
23/02/2022,Sheltered Housing,AMZNMKTPLACE AMAZON.CO,23.1,Units for air freshners in sheltered scheme,MISCELLANEOUS AND SPECIALTY RETAIL STORES
23/02/2022,Street Cleansing,RIDGEONS SAFFRON WALDE,48.58,Dog bin posts,"BUILDING MATERIALS, LUMBER STORES"
26/02/2022,Development Control,ZOOM.US 888-799-9666,112,Zoom Webinar ,TELECOM INCL PREPAID/RECURRING PHONE SVCS
26/02/2022,Museum S/W,WAITROSE 135,2.24,Tomatoes and salt for Egypt session,"GROCERY STORES, SUPERMARKETS"
26/02/2022,Corporate,WH SMITH,2.6,,NEWS DEALERS AND NEWSSTANDS
28/02/2022,Sheltered Housing,LOCK STOCK AND BARRELL,11.65,Keys cut for sheltered site,BUSINESS SERVICES-NOT ELSEWHERE CLASSIFIED
28/02/2022,Waste Management,SCREWFIX DIRECT,24.98,1 X pair safety boots ,"BUILDING MATERIALS, LUMBER STORES"
01/03/2022,Sheltered Housing,AMZNMktplace,53.29,Key cabinet for sheltered housing,MISCELLANEOUS AND SPECIALTY RETAIL STORES
01/03/2022,Sheltered Housing,TIMPSON LTD,10,Keys cut for sheltered site,MISCELLANEOUS AND SPECIALTY RETAIL STORES
03/03/2022,Highway Ranger,GRAHAM HATHAWAY RACING,440,Trailer ramps for trailer,"CAMPER DEALERS, RECREATIONAL AND UTILITY TRAILERS"
03/03/2022,Corporate,CLINTONS 756,2.5,,"GIFT, CARD, NOVELTY AND SOUVENIR SHOPS"
03/03/2022,Corporate,WH SMITH,3,,NEWS DEALERS AND NEWSSTANDS
04/03/2022,Sheltered Housing,A J PEST CONTROL LTD,155,pest control for sheltered housing,BUSINESS SERVICES-NOT ELSEWHERE CLASSIFIED
08/03/2022,Little Canfield Business Park,COYLES CAR CARE,11.65,Cleaning,"AUTOMOTIVE PARTS, ACCESSORIES STORES"
08/03/2022,Museum S/W,TESCO STORE 3130,10.25,Food and drink for event,"GROCERY STORES, SUPERMARKETS"
08/03/2022,Sheltered Housing,AMZNMktplace,11.39,Towel ring for sheltered site,MISCELLANEOUS AND SPECIALTY RETAIL STORES
10/03/2022,"Depot, Gt Dunmow",D4DRIVERS,55,Staff medical,"DOCTORS, (NOT ELSEWHERE CLASSIFIED)"
10/03/2022,Corporate,Amazon.co.uk 2X60M5HA4,20.45,,DIRECT MARKETING-OTHER DIRECT MARKETERS/NOT ELSEW.
11/03/2022,Little Canfield Business Park,KICK PLATE DIRECT,77.67,Kick plate,MISCELLANEOUS HOUSE FURNISHING SPECIALTY SHOPS
14/03/2022,"Depot, Gt Dunmow",SCREWFIX DIR LTD,49.16,Locks and blades,"BUILDING MATERIALS, LUMBER STORES"
14/03/2022,Sheltered Housing,Amazon.co.uk 2X32I2WV4,47.4,Vocie recorder - Sheltered housing,DIRECT MARKETING-OTHER DIRECT MARKETERS/NOT ELSEW.
14/03/2022,Sheltered Housing,Amazon.co.uk 2X3LQ6YY4,4.18,AAA batteries,DIRECT MARKETING-OTHER DIRECT MARKETERS/NOT ELSEW.
15/03/2022,Border Inspection,AMZNMktplace,18.58,Desk lamp,MISCELLANEOUS AND SPECIALTY RETAIL STORES
15/03/2022,Licensing,UTTLESFORD DISTRIC,100,Test IDOX,"ASSOCIATIONS-CIVIC, SOCIAL, AND FRATERNAL"
15/03/2022,Licensing,UTTLESFORD DISTRIC,218,Test IDOX,"ASSOCIATIONS-CIVIC, SOCIAL, AND FRATERNAL"
15/03/2022,Licensing,UTTLESFORD DISTRIC,190,Test IDOX,"ASSOCIATIONS-CIVIC, SOCIAL, AND FRATERNAL"
15/03/2022,Licensing,UTTLESFORD DISTRIC,21,Test IDOX,"ASSOCIATIONS-CIVIC, SOCIAL, AND FRATERNAL"
15/03/2022,Licensing,UTTLESFORD DISTRIC,23,Test IDOX,"ASSOCIATIONS-CIVIC, SOCIAL, AND FRATERNAL"
15/03/2022,Licensing,UTTLESFORD DISTRIC,89,Test IDOX,"ASSOCIATIONS-CIVIC, SOCIAL, AND FRATERNAL"
15/03/2022,Licensing,UTTLESFORD DISTRIC,315,Test IDOX,"ASSOCIATIONS-CIVIC, SOCIAL, AND FRATERNAL"
16/03/2022,Licensing,AMZNMktplace,31.93,Tyre tread tool,MISCELLANEOUS AND SPECIALTY RETAIL STORES
17/03/2022,Museum S/W,Amazon.co.uk 213F71TA4,9.87,,DIRECT MARKETING-OTHER DIRECT MARKETERS/NOT ELSEW.
17/03/2022,Corporate,QD-SAFFRON WALDEN,7.99,,MISCELLANEOUS AND SPECIALTY RETAIL STORES
17/03/2022,Corporate,D4DRIVERS,55,,"DOCTORS, (NOT ELSEWHERE CLASSIFIED)"
18/03/2022,"Depot, Gt Dunmow",DVSA,401,Continuation fee DVSA,GOVERNMENT SERVICES-NOT ELSEWHERE CLASSIFIED
18/03/2022,Licensing,UTTLESFORD DISTRIC,-21,test idox,"ASSOCIATIONS-CIVIC, SOCIAL, AND FRATERNAL"
18/03/2022,Licensing,UTTLESFORD DISTRIC,-218,test idox,"ASSOCIATIONS-CIVIC, SOCIAL, AND FRATERNAL"
18/03/2022,Licensing,UTTLESFORD DISTRIC,-100,test idox,"ASSOCIATIONS-CIVIC, SOCIAL, AND FRATERNAL"
18/03/2022,Licensing,UTTLESFORD DISTRIC,-190,test idox,"ASSOCIATIONS-CIVIC, SOCIAL, AND FRATERNAL"
18/03/2022,Licensing,UTTLESFORD DISTRIC,-315,test idox,"ASSOCIATIONS-CIVIC, SOCIAL, AND FRATERNAL"
18/03/2022,Licensing,UTTLESFORD DISTRIC,-89,test idox,"ASSOCIATIONS-CIVIC, SOCIAL, AND FRATERNAL"
18/03/2022,Licensing,UTTLESFORD DISTRIC,-23,test idox,"ASSOCIATIONS-CIVIC, SOCIAL, AND FRATERNAL"
18/03/2022,Museum S/W,Amazon.co.uk 2112R9AS4,11.86,,DIRECT MARKETING-OTHER DIRECT MARKETERS/NOT ELSEW.
21/03/2022,Revenues Admin,SOUTHEND COUNTY,117.5,Court Fees Revenues,FINES
22/03/2022,Museum S/W,WAITROSE 135,14.17,Replacement cartridges for Brita water filter for store humidifier,"GROCERY STORES, SUPERMARKETS"
22/03/2022,Museum S/W,QD-SAFFRON WALDEN,-6.66,Replacement cartridges for Brita water filter for store humidifier refund,MISCELLANEOUS AND SPECIALTY RETAIL STORES
22/03/2022,Museum S/W,AMZNMktplace,23.82,Dressing up outfits for children at the museum,MISCELLANEOUS AND SPECIALTY RETAIL STORES
23/03/2022,Corporate,EposNow,37.93,,"COMPUTERS, COMPUTER PERIPHERAL EQUIPMENT, SOFTWARE"
24/03/2022,Homelessness,ARGOS LTD,25,1 curtain pole,DISCOUNT STORES
25/03/2022,Homelessness,ARGOS LTD,-10,Refund for item not supplied,DISCOUNT STORES
26/03/2022,(inc Building Control),ZOOM.US 888-799-9666,263.09,,TELECOM INCL PREPAID/RECURRING PHONE SVCS
28/03/2022,"ICT, Asset Mgmt & FM",RICS SUBS UK CYBS,161,,"ORGANIZATIONS, MEMBERSHIP-NOT ELSEWHERE CLASSIFIED"
28/03/2022,Corporate,MUSEUMS ASCTN,94,,ART DEALERS AND GALLERIES
30/03/2022,Sheltered Housing,AMZNMktplace,43.75,Tables for sheltered housing ,MISCELLANEOUS AND SPECIALTY RETAIL STORES
30/03/2022,Sheltered Housing,AMZNMktplace,21.67,Bike rack for sheltered housing,MISCELLANEOUS AND SPECIALTY RETAIL STORES
30/03/2022,Sheltered Housing,AMZNMktplace,46.5,Coffee tables for sheltered housing,MISCELLANEOUS AND SPECIALTY RETAIL STORES
30/03/2022,Corporate,BUSINESSWATCH UK FIRE,138,,ELECTRICAL CONTRACTORS
